[Event "34th Pula Open 2022"]
[Site "Pula"]
[Date "2022.06.20"]
[Round "4.9"]
[White "Lim, Zhuo Ren"]
[Black "Berke, Ana"]
[Result "1-0"]
[ECO "A37"]
[WhiteElo "2290"]
[BlackElo "2150"]
[Annotator "TA"]
[PlyCount "130"]
[EventDate "2022.06.18"]
[EventType "swiss"]
[EventCountry "CRO"]
[SourceTitle "playchess.com"]
[Source "ChessBase"]
[SourceQuality "1"]
[TimeControl "5400+30"]

{[%evp 21,130,32,28,9,32,27,47,0,31,43,47,40,75,54,64,38,57,54,44,19,54,50,55,43,57,22,91,98,102,88,80,39,43,32,45,53,20,25,35,21,30,26,49,57,43,0,52,52,105,129,145,75,75,80,69,78,95,78,78,75,80,80,83,85,104,105,102,101,100,93,143,84,83,55,121,49,139,53,53,55,56,0,0,0,0,0,114,122,445,437,29953,29952,29953,29946,12846,12812,29975,5959,1839,8,8,8,8,0,0,0,8,8,29981,29982,12823]} 1. c4 {[%emt 0:00:04]} c5 {[%emt 0:00:05]} 2. g3 {[%emt 7:22:04]} Nc6 {[%emt 0:00:39]} 3. Bg2 {[%emt 0:00:00]} e5 {[%emt 0:00:06]} 4. Nc3 {[%emt 0:00:00]} g6 {[%emt 0:00:25]} 5. Nf3 {[%emt 0:01:28][%cal Bg1f3,Bf3e1,Be1c2,Bc2e3,Be3d5][%mdl 32]} Nge7 {[%emt 0:01:17]} 6. a3 {[%emt 0:01:16]} a5 7. O-O {[%emt 0:00:00]} d6 {[%emt 0:00:41]} 8. Ne1 {[%emt 0:00:00]} Bg7 {[%emt 0:02:24]} 9. Nc2 {[%emt 0:00:00]} O-O {[%emt 0:01:08]} 10. d3 {[%emt 0:00:00]} Rb8 {[%emt 0:00:40]} 11. Rb1 {[%emt 0:00:00]} Be6 {[%emt 0:00:58]} 12. Ne3 {[%emt 0:00:42] A37: Symmetrical English vs ...g6: 4 Bg2 Bg7 5 Nf3.} Qd7 {[%emt 0:04:26]} 13. Ned5 {[%emt 0:00:00]} Bh3 {[%emt 0:02:01]} 14. Bg5 {[%emt 0:00:00]} (14. Nb6 $14 Qe6 15. Ne4 Bxg2 16. Ng5) 14... f6 {[%emt 0:03:47] aiming for ...Bxg2.} 15. Bd2 {[%emt 0:00:00]} Bxg2 {[%emt 0:00:52]} 16. Kxg2 {[%emt 0:00:00] [#]} h6 $146 {[%emt 0:04:46]} ({Predecessor:} 16... f5 17. b4 axb4 18. axb4 Nxd5 19. Nxd5 b5 20. cxb5 Rxb5 21. bxc5 Rxc5 22. Qb3 Kh8 {½-½ (96) Markelova,L (2119)-Voit,D (2390) Moscow 2018}) 17. Qa4 {[%emt 0:01:52]} f5 {[%emt 0:05:28]} 18. Qb5 {[%emt 0:00:00] White is much more active. The black rooks are badly placed.} Qe6 {[%emt 0:05:02][%cal Of5f4]} 19. Nxe7+ {[%emt 0:03:58]} Qxe7 {[%emt 0:03:57]} 20. Nd5 {[%emt 0:00:00][%csl LRa5,LRe7] Against f4} Qe6 {[%emt 0:01:56][%cal Of5f4]} 21. Bc3 {[%emt 0:00:00]} f4 {[%emt 0:01:51][%cal Of4f3]} 22. f3 {[%emt 0:00:00]} (22. Bxa5 Nd4 23. Qb6 e4 $15) 22... h5 {[%emt 0:07:12]} 23. Rf2 {[%emt 0:00:00]} g5 {[%emt 0:04:33]} (23... fxg3 $11 {remains equal.} 24. hxg3 Ne7) 24. b4 $1 $16 {[%emt 0:00:00]} axb4 {[%emt 0:02:14]} 25. axb4 {[%emt 0:00:00]} cxb4 {[%emt 0:02:50]} 26. Nxb4 {[%emt 0:00:00]} Nxb4 {[%emt 0:01:08]} 27. Bxb4 {[%emt 0:00:00]} g4 {[%emt 0:06:18]} 28. Qd5 {[%emt 0:00:00]} Qxd5 {[%emt 0:01:41]} 29. cxd5 {[%emt 0:00:00]} Rf6 {[%emt 0:00:51]} 30. Rff1 {[%emt 0:00:00]} gxf3+ {[%emt 0:03:00]} 31. Rxf3 {[%emt 0:00:00]} Rc8 {[%emt 0:00:49] Inhibits Rc1.} 32. Kf2 {[%emt 0:00:00]} Rc2 {[%emt 0:01:58]} 33. Ba3 {[%emt 0:00:00]} Ra2 {[%emt 0:01:46]} (33... e4 $11 34. dxe4 fxg3+ 35. Kxg3 (35. hxg3 $2 Rxf3+ 36. Kxf3 Rc3+ 37. e3 Rxa3 $19) 35... Rg6+ 36. Kf4 Rxe2) 34. Bc1 $14 {[%emt 0:00:00][%cal Rg3f4]} Rf7 {[%emt 0:10:03]} (34... fxg3+ $14 35. hxg3 Ra5) 35. gxf4 $16 {[%emt 0:00:00]} Rc7 {[%emt 0:02:53][%cal Ob7b5]} 36. fxe5 {[%emt 0:00:00]} (36. Rg3 $142) 36... Rcc2 {[%emt 0:03:47]} 37. Re3 {[%emt 0:00:00]} ({Much weaker is} 37. Rxb7 Rxe2+ 38. Kg3 Rxh2 $11) 37... Bxe5 {[%emt 0:01:54] Threatens to win with ...Bd4.} 38. Re4 {[%emt 0:00:00] Prevents Bd4+.} Rc7 {[%emt 0:01:04]} 39. h4 {[%emt 0:00:00]} Rf7+ {[%emt 0:00:30]} 40. Kg2 {[%emt 0:00:00]} Ra5 {[%emt 0:01:41]} 41. Bg5 {[%emt 0:00:00]} Rxd5 {[%emt 0:00:46]} 42. Reb4 {[%emt 0:00:00]} Rd4 {[%emt 0:03:32]} 43. Rxd4 {[%emt 0:00:00]} ({Not} 43. Rxb7 Rg4+ 44. Kh1 Rf2 45. Rb8+ Kf7 46. R1b7+ Ke6 47. Re7+ Kd5 48. Rb5+ Kc6 49. Rexe5 dxe5 50. Rxe5 Rgg2 $17) 43... Bxd4 {[%emt 0:00:04][%mdl 4096] Endgame KRB-KRB} 44. e3 {[%emt 0:00:00]} Bg7 {[%emt 0:00:56]} 45. Rb6 {[%emt 0:00:00]} Bf8 {[%emt 0:00:13]} (45... d5 $142) 46. Bf4 {[%emt 0:00:00]} (46. Rb5 $142) 46... Rd7 {[%emt 0:01:16]} 47. Kf3 {[%emt 0:00:00]} Kf7 {[%emt 0:00:15]} (47... Be7 $14) 48. Ke4 {[%emt 0:00:00]} (48. Bg5 $16) 48... Ke6 {[%emt 0:00:23] [#]} (48... Be7 $1 $14) 49. d4 {[%emt 0:00:00]} ({White should play} 49. Bg5 $1 $16) 49... Be7 $1 $14 {[%emt 0:00:21]} 50. d5+ {[%emt 0:00:00][%cal Bd4d5,Bd5d6][%mdl 32]} Kf7 {[%emt 0:01:39]} 51. Kf5 {[%emt 0:00:00]} (51. Bg3 $14) 51... Bxh4 $11 {[%emt 0:01:30]} 52. Rxd6 {[%emt 0:00:00]} Rxd6 {[%emt 0:00:49]} 53. Bxd6 {[%emt 0:00:00] e4 is the strong threat. KB-KB} Be7 {[%emt 0:00:44] [#]} (53... b5 $11) 54. Bf4 $1 $16 {[%emt 0:00:00]} b5 $2 {[%emt 0:00:07][%mdl 8192]} (54... Bc5 $16) 55. d6 $18 {[%emt 0:03:11]} Bd8 {[%emt 0:00:10]} (55... Bf6 $18 56. e4 b4) 56. e4 {[%emt 0:00:00][%cal Be3e4,Be4e5,Be5e6][%mdl 32]} b4 {[%emt 0:01:15]} 57. e5 {[%emt 0:00:00]} b3 {[%emt 0:01:25]} 58. e6+ {[%emt 0:00:00]} Ke8 {[%emt 0:02:32]} 59. Be5 {[%emt 0:00:00]} (59. Bc1 $142 Kf8 60. d7 Kg7 61. Ke5 Bc7+ 62. Kd5 Kf6 63. Bb2+ Ke7 64. Bc1) 59... h4 {[%emt 0:00:21]} 60. Kg4 $2 {[%emt 0:00:00]} (60. Bg7 $18 {Hoping for Kg4.} h3 61. d7+ Ke7 62. Bf6+ Kd6 63. Bxd8) 60... Be7 $1 $11 {[%emt 0:01:05]} 61. d7+ {[%emt 0:00:00]} Kd8 {[%emt 0:00:14]} 62. Kf3 {[%emt 0:00:00] White threatens Kg4 and mate.} Bg5 {[%emt 0:01:46]} 63. Kg4 {[%emt 0:00:00]} Be7 {[%emt 0:00:05]} 64. Kf4 {[%emt 0:00:00] Threatening mate with Kg4.} Bf8 $2 {[%emt 0:00:53][%mdl 8192]} (64... h3 $11 65. Kg3 h2 66. Kxh2 Bg5) 65. Bc3 {[%emt 0:00:00]} Bd6+ {[%emt 0:01:29] Weighted Error Value: White=0.22 (precise) /Black=0.62} 1-0

[Event "34th Pula Open 2022"]
[Site "Pula"]
[Date "2022.06.20"]
[Round "4.10"]
[White "Ragger, Anna-Christina"]
[Black "Milekic, Daniel"]
[Result "1/2-1/2"]
[ECO "B85"]
[WhiteElo "2141"]
[BlackElo "2280"]
[Annotator "TA"]
[PlyCount "62"]
[EventDate "2022.06.18"]
[EventType "swiss"]
[EventCountry "CRO"]
[SourceTitle "playchess.com"]
[Source "ChessBase"]
[SourceQuality "1"]
[TimeControl "5400+30"]

{[%evp 22,62,0,0,53,45,65,66,104,55,130,73,82,25,22,-4,70,45,93,-28,-36,-30,0,-62,-63,-63,-70,-89,-96,-74,0,0,0,-40,0,0,37,11,3,37,28,22,31]} 1. e4 {[%emt 0:00:03]} c5 {[%emt 0:00:20]} 2. Nf3 {[%emt 0:00:05]} d6 {[%emt 0:00:13]} 3. d4 {[%emt 0:00:05]} cxd4 {[%emt 0:00:11]} 4. Nxd4 {[%emt 0:00:02]} Nf6 {[%emt 0:00:13]} 5. Nc3 {[%emt 0:00:04]} a6 {[%emt 0:00:06]} 6. Be2 {[%emt 0:00:25]} e6 {[%emt 0:01:00]} 7. O-O {[%emt 0:00:32]} Be7 {[%emt 0:00:11]} 8. f4 {[%emt 0:02:57]} Qc7 {[%emt 0:01:28]} 9. Kh1 {[%emt 0:00:31]} O-O {[%emt 0:02:14]} 10. a4 {[%emt 0:01:20]} Nc6 {[%emt 0:00:09]} 11. Be3 {[%emt 0:00:36]} Re8 {[%emt 0:00:18]} 12. Qe1 {[%emt 0:02:57]} Nd7 {[%emt 0:28:06] B85: Sicilian Scheveningen: 6 Be2 a6, lines with early Be3.} (12... Nxd4 $11 13. Bxd4 Bd7) 13. Qg3 $14 {[%emt 0:08:19]} Bf6 {[%emt 0:06:05]} 14. Rad1 {[%emt 0:04:17] 0x0.001e6791cdc4dp-1022s more active pieces. The black rooks are badly placed.} Nb4 {[%emt 0:14:06] White is slightly better.} 15. Rd2 {[%emt 0:07:41] [#]} ({White should try} 15. f5 $16) 15... Nc5 $146 {[%emt 0:04:29]} (15... d5 $14) ({Predecessor:} 15... b6 16. Bf3 Bb7 17. Rfd1 Nc5 18. Qf2 Rad8 19. Nde2 Nc6 20. g4 g6 21. Bg2 Bg7 {½-½ (43) Stoinev,M (2333)-Iotov,V (2254) Bankia 2003}) 16. Bf3 {[%emt 0:20:55]} (16. e5 $142 $1 {[%cal Re5f6]} dxe5 17. Nf3 exf4 18. Bxf4) 16... Bd7 {[%emt 0:01:55] [#]} 17. Ra1 {[%emt 0:06:31]} ({Better is} 17. Nde2 $1 $16) 17... Rad8 {[%emt 0:01:24]} 18. a5 {[%emt 0:02:44]} g6 {[%emt 0:02:52]} (18... e5 $11 19. fxe5 Bxe5) 19. h4 {[%emt 0:01:25]} e5 {[%emt 0:06:47]} (19... Kh8 $14 {is superior.}) 20. Nb3 {[%emt 0:07:17]} (20. Nf5 $1 $16 {[%cal Rf5h6] Nh6+ is the strong threat.} Bxf5 21. exf5) 20... exf4 $11 {[%emt 0:03:49]} 21. Bxf4 {[%emt 0:01:15]} Be5 {[%emt 0:00:33]} 22. h5 {[%emt 0:04:49]} (22. Rad1 $11 Nxb3 23. Rxd6 (23. cxb3 Be6 $17) 23... Bxf4 24. Qxf4) 22... Nxb3 $1 $15 {[%emt 0:02:31]} 23. cxb3 {[%emt 0:00:29]} Be6 $1 {[%emt 0:01:28]} (23... Bxc3 $2 24. Bxd6 Qxd6 25. Qxd6 $18 (25. Rxd6 $2 {loses.} Be5 $17)) 24. Bxe5 {[%emt 0:04:12]} dxe5 {[%emt 0:00:17]} 25. Nd5 {[%emt 0:00:36] [#]} Bxd5 {[%emt 0:05:53]} (25... Nxd5 $1 $17 26. exd5 Bf5) 26. exd5 $11 {[%emt 0:00:04]} Qd6 {[%emt 0:01:08]} 27. Ra4 {[%emt 0:02:47]} Rc8 {[%emt 0:09:11]} 28. Be4 {[%emt 0:05:27]} Nc6 {[%emt 0:04:09]} 29. hxg6 {[%emt 0:00:57]} hxg6 {[%emt 0:00:08] [#]} 30. Bxg6 $1 {[%emt 0:03:43]} fxg6 {[%emt 0:01:31] [#]} 31. dxc6 $1 {[%emt 0:00:04]} Qxc6 {[%emt 0:00:53] Weighted Error Value: White=0.32/Black=0.29 (precise)} (31... Qxd2 {leads to mate.} 32. Qxg6+ Kf8 33. Qf6+ Kg8 34. Rg4+) 1/2-1/2

[Event "34th Pula Open 2022"]
[Site "Pula"]
[Date "2022.06.20"]
[Round "4.11"]
[White "Karlusic, Luka"]
[Black "Hadzovic, Amir"]
[Result "0-1"]
[ECO "E71"]
[WhiteElo "2054"]
[BlackElo "2270"]
[Annotator "TA"]
[PlyCount "58"]
[EventDate "2022.06.18"]
[EventType "swiss"]
[EventCountry "CRO"]
[SourceTitle "playchess.com"]
[Source "ChessBase"]
[SourceQuality "1"]
[TimeControl "5400+30"]

{[%evp 10,58,39,24,51,42,42,0,8,0,19,-36,-43,-35,-27,-39,-43,-44,-30,-119,-119,-181,-180,-188,-202,-257,-259,-378,-388,-552,-497,-722,-722,-668,-713,-688,-704,-695,-704,-718,-725,-724,-706,-850,-896,-1725,-1529,-29991,-29992,-29993,-29994]} 1. d4 {[%emt 0:00:17]} Nf6 {[%emt 0:00:12]} 2. c4 {[%emt 0:00:08]} g6 {[%emt 0:00:11]} 3. Nc3 {[%emt 0:00:05]} Bg7 {[%emt 0:00:06]} 4. e4 {[%emt 0:00:08]} d6 {[%emt 0:00:05]} 5. h3 {[%emt 0:00:48]} O-O {[%emt 0:01:29]} 6. Be3 {[%emt 0:00:27]} Nfd7 {[%emt 0:00:14] [#] E71: King's Indian: 4 e4 d6 5 h3.} 7. Qd2 $146 {[%emt 0:04:47]} ({Predecessor:} 7. Nf3 c5 8. Be2 cxd4 9. Nxd4 Nc6 10. O-O Re8 11. f4 Nc5 12. Nxc6 bxc6 13. e5 Nb7 14. Bf3 {1-0 (23) Wieczorek,O (2477)-Wang,Y (2433) Aracaju 2018}) 7... e5 {[%emt 0:00:28]} 8. d5 {[%emt 0:00:26]} f5 {[%emt 0:00:43] The position is equal.} 9. exf5 {[%emt 0:09:26]} gxf5 {[%emt 0:02:15] Threatens to win with ...f4.} 10. Bh6 {[%emt 0:01:02]} ({White should try} 10. g3 $11) 10... Qf6 {[%emt 0:09:32]} 11. Bxg7 {[%emt 0:02:31]} Qxg7 {[%emt 0:00:07]} 12. O-O-O {[%emt 0:01:00]} Na6 {[%emt 0:02:18]} 13. f4 {[%emt 0:09:08]} Nac5 {[%emt 0:04:38]} 14. g4 {[%emt 0:15:41] [#]} (14. fxe5 $11 {remains equal.} Nxe5 15. Nf3) 14... exf4 $1 $17 {[%emt 0:08:43][%cal Be5f4,Bf4f3,Bf3f2][%mdl 32]} 15. gxf5 {[%emt 0:03:54] [#]} (15. Qxf4 $17 h6 16. Qd4) 15... Ne5 $1 $19 {[%emt 0:01:33]} ({Stronger than} 15... Rxf5 16. Nf3 Ne5 17. Rg1 $11) 16. b4 {[%emt 0:05:08]} Na6 {[%emt 0:07:09]} 17. a3 {[%emt 0:00:36]} Bxf5 {[%emt 0:00:38]} 18. Rh2 {[%emt 0:12:00]} (18. h4 $142) 18... f3 {[%emt 0:05:37]} 19. Rh1 {[%emt 0:06:24]} (19. Qd4 $142) 19... f2 {[%emt 0:04:25]} 20. Nge2 {[%emt 0:03:27]} (20. Qd4 $142 fxg1=N 21. Rxg1) 20... Nd3+ {[%emt 0:12:07]} 21. Kb1 {[%emt 0:00:37]} Ndxb4+ {[%emt 0:00:28]} 22. Kb2 {[%emt 0:00:49]} Nd3+ {[%emt 0:00:33]} 23. Ka2 {[%emt 0:00:11]} Nac5 {[%emt 0:00:51]} 24. Rh2 {[%emt 0:03:28]} a5 {[%emt 0:02:49]} 25. Rg2 {[%emt 0:01:00]} Bg6 {[%emt 0:00:26] aiming for ...Rf3.} 26. Rxg6 {[%emt 0:09:17]} hxg6 {[%emt 0:01:17]} 27. Ng3 {[%emt 0:01:54]} Rf3 {[%emt 0:01:13] ( -> ...Nb4+)} 28. Nge4 {[%emt 0:01:21]} Nxe4 {[%emt 0:00:40]} 29. Nxe4 {[%emt 0:00:05] [#]} Nb4+ $1 {[%emt 0:00:27] White got outplayed after the opening.  Weighted Error Value: White=0.83/Black=0.11 (very precise)} 0-1

[Event "34th Pula Open 2022"]
[Site "Pula"]
[Date "2022.06.20"]
[Round "4.12"]
[White "Boucquet, Emile"]
[Black "Compel, Daniel"]
[Result "0-1"]
[ECO "B50"]
[WhiteElo "2252"]
[BlackElo "2106"]
[Annotator "TA"]
[PlyCount "120"]
[EventDate "2022.06.18"]
[EventType "swiss"]
[EventCountry "CRO"]
[SourceTitle "playchess.com"]
[Source "ChessBase"]
[SourceQuality "1"]
[TimeControl "5400+30"]

{[%evp 14,120,18,10,20,0,0,0,2,6,1,5,0,-23,0,0,-8,-29,-14,-13,-8,-16,0,-32,0,-14,0,-58,-22,-17,-22,-28,-28,-23,-17,-29,-29,-23,-21,-29,-32,-12,-19,-72,-61,-65,-67,-139,-124,-139,-145,-135,-126,-134,-105,-147,-141,-141,-137,-139,-150,-129,-111,-119,-110,-119,-37,-97,-97,-275,-265,-245,-235,-377,-391,-406,-363,-403,-399,-372,-356,-452,-439,-450,-312,-312,-312,-446,-430,-441,-441,-441,-441,-409,-425,-437,-446,-875,-557,-476,0,-868,-809,-1185,-1053,-1005,-1000,-1739,-1486]} 1. e4 {[%emt 0:06:48]} c5 {[%emt 0:00:06]} 2. Nf3 {[%emt 0:00:45]} d6 {[%emt 0:00:04]} 3. Bc4 {[%emt 0:00:10]} Nf6 {[%emt 0:00:25]} 4. d3 {[%emt 0:00:02]} e6 {[%emt 0:00:22]} 5. Bb3 {[%emt 0:00:07]} Be7 {[%emt 0:00:20]} 6. O-O {[%emt 0:00:12]} O-O {[%emt 0:00:04]} 7. c3 {[%emt 0:00:06]} Nc6 {[%emt 0:01:51]} 8. Re1 {[%emt 0:00:33]} a6 {[%emt 0:00:37] B50: Sicilian: 2...d6, Miscellaneous.} 9. Nbd2 {[%emt 0:05:51][%cal Bb1d2,Bd2f1,Bf1g3][%mdl 32]} b5 {[%emt 0:00:07]} 10. Nf1 {[%emt 0:00:17]} Bb7 {[%emt 0:01:03] The position is equal.} 11. Ng3 {[%emt 0:08:12]} Qc7 {[%emt 0:00:21]} 12. Bf4 {[%emt 0:04:06]} Ne5 {[%emt 0:02:24]} 13. Bc2 {[%emt 0:04:37] [#]} Rfe8 $146 {[%emt 0:05:48]} ({Predecessor:} 13... a5 14. Rc1 b4 15. d4 Nxf3+ 16. Qxf3 bxc3 17. Qxc3 Rfc8 18. Qd2 Qd8 19. dxc5 dxc5 {0-1 (68) Okhotnik,V (2453)-Takacs,B (2385) Balatonboglar 2016}) 14. Rc1 {[%emt 0:00:57]} Rac8 {[%emt 0:02:49]} 15. h4 {[%emt 0:12:43]} Nxf3+ {[%emt 0:29:35]} 16. Qxf3 {[%emt 0:05:05]} Qa5 {[%emt 0:00:12]} 17. Bb1 {[%emt 0:04:19]} b4 {[%emt 0:04:16]} 18. Bd2 {[%emt 0:01:03]} Qb6 {[%emt 0:00:21]} 19. h5 {[%emt 0:01:45]} h6 {[%emt 0:04:35]} 20. Qe3 {[%emt 0:05:12]} (20. cxb4 $11 cxb4 21. Be3) 20... d5 {[%emt 0:04:33][%cal Bd6d5,Bd5d4][%mdl 32]} 21. e5 {[%emt 0:03:03]} d4 {[%emt 0:01:50]} 22. Qe2 {[%emt 0:03:03]} bxc3 $40 {[%emt 0:02:26][%mdl 128] White needs to defend precisely.} 23. bxc3 {[%emt 0:02:11]} Qc6 {[%emt 0:02:08][%csl Gb7][%cal Rc6g2] [#]} 24. f3 {[%emt 0:02:54]} dxc3 {[%emt 0:01:31]} 25. Rxc3 {[%emt 0:00:16]} Nd5 {[%emt 0:00:29] Threatens to win with ...Bh4.} 26. Rc4 {[%emt 0:00:12] Against Bh4} f5 {[%emt 0:10:32] Prevents Rg4.} 27. exf6 $1 {[%emt 0:01:48]} Bxf6 {[%emt 0:00:11]} 28. Rg4 {[%emt 0:04:48]} (28. Kf1 $11 {remains equal.}) 28... Bd4+ $17 {[%emt 0:00:08]} 29. Kh1 {[%emt 0:02:28]} Nf6 {[%emt 0:00:18]} 30. Rg6 {[%emt 0:00:20]} (30. Rh4 $15) 30... Kh7 {[%emt 0:00:34][%cal Of6h5]} 31. Ne4 {[%emt 0:10:03]} Nxh5 {[%emt 0:05:46]} 32. Rg4 {[%emt 0:00:02]} Qd5 {[%emt 0:02:02]} 33. Bc2 {[%emt 0:02:12]} Qxa2 {[%emt 0:01:23] Active counter play!} 34. Nd6 {[%emt 0:00:11]} Qxc2 {[%emt 0:00:57]} 35. Nxb7 {[%emt 0:00:27]} Rc7 {[%emt 0:01:33]} 36. Nd6 {[%emt 0:01:37]} Rf8 {[%emt 0:01:23]} 37. Rc1 {[%emt 0:05:12]} Qb2 {[%emt 0:01:31]} 38. Nc4 {[%emt 0:00:20]} Qb7 {[%emt 0:02:29][%cal Oe6e5]} 39. Qxe6 {[%emt 0:00:34] [#] Strongly threatening Qg6+.} Qc6 {[%emt 0:03:09]} (39... Rf6 $17 40. Qe4+ (40. Qe8 Qd5 $17) 40... Qxe4 41. dxe4 g5) 40. Qxc6 {[%emt 0:03:53]} (40. Nd6 $15 Rf6 41. Qe4+ Qxe4 42. Nxe4) 40... Rxc6 {[%emt 0:00:05][%cal Bc7c6,Bc6e6,Be6e2,Be2f2,Bf2f3][%mdl 32] Black converts the advantage convincingly.} 41. Ba5 $2 {[%emt 0:01:09]} (41. Rh4 $17 Nf6 42. Be3) 41... Nf4 $19 {[%emt 0:01:12]} 42. Rd1 {[%emt 0:00:40]} Rf5 {[%emt 0:01:30] ( -> ...Rh5+)} 43. Be1 {[%emt 0:00:03]} (43. Rh4 $142) 43... Re6 {[%emt 0:01:35]} 44. Bg3 {[%emt 0:00:13]} Rh5+ {[%emt 0:01:28]} 45. Rh4 {[%emt 0:00:12]} Rxh4+ {[%emt 0:01:34]} 46. Bxh4 {[%emt 0:00:01]} Re2 {[%emt 0:00:22]} 47. g3 {[%emt 0:00:01]} Nh3 {[%emt 0:01:36] White must now prevent ...Nf2+.} 48. g4 {[%emt 0:00:02]} Nf2+ {[%emt 0:00:27]} 49. Bxf2 {[%emt 0:00:04]} Rxf2 {[%emt 0:00:04][%mdl 4096] Endgame KRB-KRN} 50. Rb1 {[%emt 0:00:49]} (50. Nd2 {was necessary.}) 50... Rxf3 {[%emt 0:00:21]} 51. Kg2 {[%emt 0:00:25]} Rxd3 {[%emt 0:00:17]} 52. Rb6 {[%emt 0:00:03]} Rc3 {[%emt 0:00:25]} 53. Nd6 {[%emt 0:00:14]} Ra3 {[%emt 0:00:34][%cal Oc5c4]} 54. Nf5 {[%emt 0:00:33]} a5 {[%emt 0:00:23][%cal Ba6a5,Ba5a4][%mdl 32]} 55. Ne7 {[%emt 0:00:13]} (55. Ra6 $142) 55... Bf6 {[%emt 0:00:49]} 56. Nd5 {[%emt 0:00:08]} Bd4 {[%emt 0:00:39]} 57. Ne7 $1 {[%emt 0:00:07]} a4 {[%emt 0:00:06] And now ...Ra2+ would win. Black is clearly winning.} 58. Ng6 {[%emt 0:00:25]} Ra2+ {[%emt 0:00:16]} 59. Kg3 {[%emt 0:00:04]} Rf2 {[%emt 0:00:49]} 60. Kh4 {[%emt 0:00:34]} Rf6 {[%emt 0:00:40] Weighted Error Value: White=0.46/Black=0.22 (precise)} 0-1

[Event "34th Pula Open 2022"]
[Site "Pula"]
[Date "2022.06.21"]
[Round "5.1"]
[White "Popovic, Milan S"]
[Black "Fercec, Nenad"]
[Result "1/2-1/2"]
[WhiteElo "2383"]
[BlackElo "2415"]
[Annotator "TA"]
[PlyCount "19"]
[EventDate "2022.06.18"]
[EventType "swiss"]
[EventCountry "CRO"]
[SourceTitle "playchess.com"]
[Source "ChessBase"]
[SourceQuality "1"]
[TimeControl "5400+30"]

{[%evp 9,19,37,50,34,51,29,39,21,60,54,53,31]} 1. e4 {[%emt 0:00:02]} c5 {[%emt 0:02:41]} 2. Nf3 {[%emt 0:00:04]} g6 {[%emt 0:00:10]} 3. c3 {[%emt 0:01:07]} d5 {[%emt 0:01:21]} 4. e5 {[%emt 0:00:04]} d4 {[%emt 0:00:08]} 5. cxd4 {[%emt 0:02:06]} cxd4 {[%emt 0:00:13] [#]} 6. Bc4 $146 {[%emt 0:00:14] B27: Sicilian: 2 Nf3, unusual Black 2nd moves.} ({Predecessor:} 6. Bb5+ Bd7 7. Bc4 Nc6 8. O-O Bg7 9. Re1 Nh6 10. d3 O-O 11. Bf4 Bg4 12. Nbd2 {1-0 (47) Howell,D (2685)-Claridge Hansen,W (2283) England 2018}) 6... Bg7 {[%emt 0:04:42]} 7. O-O {[%emt 0:02:13]} Nc6 {[%emt 0:01:38]} 8. Re1 {[%emt 0:00:37]} e6 {[%emt 0:00:33]} 9. d3 {[%emt 0:00:53][%cal Ob2b4]} Nge7 {[%emt 0:00:24]} 10. a3 {[%emt 0:01:24] White took control after the opening.  Weighted Error Value: White=0.14 (very precise) /Black=0.17 (very precise)} 1/2-1/2